fUSD/lending_fUSD_20240220
["ID","MTS","AMOUNT","RATE_DAILY","PERIOD"]
[314592071,1708438244137,-500.0,0.00046575,6]
[314592072,1708438244151,-500.0,0.00046575,6]
[314592073,1708438244160,-500.0,0.00046575,6]
[314592074,1708438244171,-500.0,0.00046575,6]
[314592075,1708438244181,-500.0,0.00046575,6]
[314592076,1708438244190,-500.0,0.00046575,6]
[314592077,1708438244200,-500.0,0.00046575,6]
[314592078,1708438244210,-500.0,0.00046575,6]
[314592079,1708438244219,-500.0,0.00046575,6]
[314592080,1708438244229,-500.0,0.00046575,6]
[314592081,1708438244239,-500.0,0.00046575,6]
[314592082,1708438244249,-500.0,0.00046575,6]
[314592083,1708438244259,-500.0,0.00046575,6]
[314592084,1708438244269,-500.0,0.00046575,6]
[314592085,1708438244278,-500.0,0.00046575,6]
[314592086,1708438244288,-500.0,0.00046575,6]
[314592087,1708438244298,-556.88816945,0.00046575,6]
[314592088,1708438244309,-500.0,0.00046575,6]
[314592089,1708438244319,-489.67943093,0.00046575,6]
[314592090,1708438244328,-341.19224171,0.00046575,6]
[314592091,1708438244338,-524.45843297,0.00046575,6]
[314592092,1708438244348,-500.0,0.00046575,6]
[314592093,1708438244358,-500.0,0.00046575,6]
[314592094,1708438244368,-542.15686498,0.00046575,6]
[314592095,1708438244378,-300.95615346,0.00046575,6]
[314592096,1708438244387,-1000.0,0.00046575,80]
[314592097,1708438244396,-555.39074036,0.00046575,6]
[314592098,1708438244406,-500.0,0.00046575,6]
[314592099,1708438244415,-524.66876978,0.00046575,6]
[314592100,1708438244427,-500.0,0.00046575,6]
[314592101,1708438244438,-606.42,0.00046575,2]
[314592102,1708438244447,-500.0,0.00046575,6]
[314592103,1708438244457,-500.0,0.00046575,6]
[314592104,1708438244467,-500.0,0.00046575,6]
[314592105,1708438244477,-500.0,0.00046575,6]
[314592106,1708438244486,-500.0,0.00046575,6]
[314592107,1708438244496,-500.0,0.00046575,6]
[314592108,1708438244505,-500.0,0.00046575,6]
[314592109,1708438244515,-500.0,0.00046575,6]
[314592110,1708438244525,-500.0,0.00046575,6]
[314592111,1708438244534,-500.0,0.00046575,6]
[314592112,1708438244543,-500.0,0.00046575,6]
[314592113,1708438244553,-500.0,0.00046575,6]
[314592114,1708438244562,-500.0,0.00046575,20]
[314592115,1708438244573,-500.0,0.00046575,6]
[314592116,1708438244586,-553.16004552,0.00046575,6]
[314592117,1708438244598,-500.0,0.00046575,6]
[314592118,1708438244611,-543.960623,0.00046575,6]
[314592119,1708438244620,-552.82396325,0.00046575,6]
[314592120,1708438244630,-500.0,0.00046575,6]
[314592121,1708438244640,-500.0,0.00046575,6]
[314592122,1708438244650,-500.0,0.00046575,6]
[314592123,1708438244659,-500.0,0.00046575,6]
[314592124,1708438244671,-500.0,0.00046575,6]
[314592125,1708438244682,-537.06737215,0.00046575,6]
[314592126,1708438244691,-500.0,0.00046575,6]
[314592127,1708438244702,-545.87976051,0.00046575,6]
[314592128,1708438244711,-545.28716769,0.00046575,6]
[314592129,1708438244721,-500.0,0.00046575,6]
[314592130,1708438244730,-540.68488322,0.00046575,6]
[314592131,1708438244739,-500.0,0.00046575,6]
[314592132,1708438244749,-702.13858382,0.00046575,6]
[314592133,1708438244757,-500.0,0.00046575,6]
[314592134,1708438244768,-500.0,0.00046575,6]
[314592135,1708438244777,-1000.0,0.00046575,7]
[314592136,1708438244787,-535.15496341,0.00046575,6]
[314592137,1708438244796,-500.0,0.00046575,6]
[314592138,1708438244805,-500.0,0.00046575,6]
[314592139,1708438244815,-500.0,0.00046575,6]
[314592140,1708438244824,-500.0,0.00046575,6]
[314592141,1708438244833,-500.0,0.00046575,6]
[314592142,1708438244842,-474.61864417,0.00046575,6]
[314592143,1708438244852,-500.0,0.00046575,6]
[314592144,1708438244861,-538.68199028,0.00046575,6]
[314592145,1708438244870,-885.16468462,0.00046575,3]
[314592146,1708438244880,-535.02644965,0.00046575,6]
[314592147,1708438244889,-500.0,0.00046575,6]
[314592148,1708438244903,-500.0,0.00046575,6]
[314592149,1708438244912,-500.0,0.00046575,6]
[314592150,1708438244923,-500.5541525,0.00046575,6]
[314592151,1708438244933,-562.38405658,0.00046575,6]
[314592152,1708438244942,-500.0,0.00046575,6]
[314592153,1708438244951,-500.0,0.00046575,6]
[314592154,1708438244961,-500.0,0.00046575,6]
[314592155,1708438244970,-500.0,0.00046575,6]
[314592156,1708438244979,-598.42691498,0.00046575,6]
[314592157,1708438244988,-600.77914811,0.00046575,6]
[314592158,1708438244997,-500.0,0.00046575,6]
[314592159,1708438245007,-500.0,0.00046575,6]
[314592160,1708438245016,-509.11628563,0.00046575,6]
[314592161,1708438245026,-500.0,0.00046575,6]
[314592162,1708438245034,-500.0,0.00046575,6]
[314592163,1708438245044,-500.0,0.00046575,6]
[314592164,1708438245054,-157.32709944,0.00046575,7]
[314592165,1708438245063,-500.0,0.00046575,6]
[314592166,1708438245073,-500.0,0.00046575,6]
[314592167,1708438245082,-500.0,0.00046575,6]
[314592168,1708438245091,-533.43335921,0.00046575,6]
[314592169,1708438245101,-500.0,0.00046575,6]
[314592170,1708438245110,-558.44775531,0.00046575,6]
[314592171,1708438245120,-269.40639238,0.00046575,120]
[314592172,1708438245130,-494.77414686,0.00046575,6]
[314592173,1708438245139,-500.0,0.00046575,6]
[314592174,1708438245148,-500.0,0.00046575,6]
[314592175,1708438245157,-524.1151831,0.00046575,6]
[314592176,1708438245169,-473.21293111,0.00046575,6]
[314592177,1708438245179,-500.0,0.00046575,6]
[314592178,1708438245189,-542.51529725,0.00046575,6]
[314592179,1708438245199,-500.0,0.00046575,6]
[314592180,1708438245209,-523.94458061,0.00046575,6]
[314592181,1708438245218,-251.14872431,0.00046575,6]
[314592182,1708438245228,-500.0,0.00046575,6]
[314592183,1708438245237,-500.0,0.00046575,6]
[314592184,1708438245246,-517.69882726,0.00046575,6]
[314592185,1708438245258,-500.0,0.00046575,6]
[314592186,1708438245267,-518.00403318,0.00046575,6]
[314592187,1708438245277,-500.0,0.00046575,6]
[314592188,1708438245287,-500.0,0.00046575,6]
[314592189,1708438245297,-642.82248556,0.00046575,6]
[314592190,1708438245306,-500.0,0.00046575,6]
[314592191,1708438245316,-500.0,0.00046575,6]
[314592192,1708438245327,-500.0,0.00046575,6]
[314592193,1708438245337,-518.5680107,0.00046575,6]
[314592194,1708438245346,-500.0,0.00046575,6]
[314592195,1708438245355,-500.0,0.00046575,6]
[314592196,1708438245364,-500.0,0.00046575,6]
[314592197,1708438245374,-393.12415034,0.00046575,6]
[314592198,1708438245383,-500.0,0.00046575,6]
[314592199,1708438245393,-262.16338056,0.00046575,6]
[314592200,1708438245402,-500.0,0.00046575,2]
[314592201,1708438245412,-184.57478247,0.00046575,6]
[314592202,1708438245425,-519.89121865,0.00046575,6]
[314592203,1708438245434,-848.07,0.00046575,6]
[314592204,1708438245443,-624.61673098,0.00046575,6]
[314592205,1708438245453,-150.0,0.00046575,6]
[314592206,1708438245462,-500.0,0.00046575,6]
[314592207,1708438245471,-500.0,0.00046575,6]
[314592208,1708438245481,-500.0,0.00046575,6]
[314592209,1708438245491,-546.31711893,0.00046575,6]
[314592210,1708438245501,-500.0,0.00046575,6]
[314592211,1708438245511,-500.0,0.00046575,6]
[314592212,1708438245520,-500.0,0.00046575,6]
[314592213,1708438245530,-500.0,0.00046575,6]
[314592214,1708438245539,-500.0,0.00046575,6]
[314592215,1708438245549,-500.0,0.00046575,6]
[314592216,1708438245558,-500.0,0.00046575,6]
[314592217,1708438245569,-500.0,0.00046575,6]
[314592218,1708438245580,-500.0,0.00046575,6]
[314592219,1708438245590,-560.53775813,0.00046575,6]
[314592220,1708438245600,-500.0,0.00046575,6]
[314592221,1708438245611,-535.81607861,0.00046575,6]
[314592222,1708438245621,-500.0,0.00046575,6]
[314592223,1708438245631,-422.79103766,0.00046575,6]
[314592224,1708438245641,-500.0,0.00046575,6]
[314592225,1708438245651,-500.0,0.00046575,6]
[314592226,1708438245661,-500.0,0.00046575,6]
[314592227,1708438245674,-500.0,0.00046575,6]
[314592228,1708438245685,-500.0,0.00046575,6]
[314592229,1708438245695,-500.0,0.00046575,6]
[314592230,1708438245706,-566.42358745,0.00046575,6]
[314592231,1708438245715,-500.0,0.00046575,6]
[314592232,1708438245724,-500.0,0.00046575,6]
[314592233,1708438245734,-682.3,0.00046575,6]
[314592234,1708438245743,-509.83242708,0.00046575,6]
[314592235,1708438245753,-212.9669228,0.00046575,6]
[314592236,1708438245762,-555.44200631,0.00046575,6]
[314592237,1708438245771,-500.0,0.00046575,6]
[314592238,1708438245781,-530.46648344,0.00046575,6]
[314592239,1708438245790,-544.51435272,0.00046575,6]
[314592240,1708438245800,-500.0,0.00046575,6]
[314592241,1708438245809,-500.0,0.00046575,6]
[314592242,1708438245818,-500.0,0.00046575,6]
[314592243,1708438245827,-500.0,0.00046575,6]
[314592244,1708438245837,-500.0,0.00046575,6]
[314592245,1708438245846,-500.0,0.00046575,6]
[314592246,1708438245856,-500.0,0.00046575,6]
[314592247,1708438245866,-500.0,0.00046575,6]
[314592248,1708438245875,-500.0,0.00046575,6]
[314592249,1708438245884,-521.47193829,0.00046575,6]
[314592250,1708438245894,-642.69094484,0.00046575,6]
[314592251,1708438245903,-500.0,0.00046575,6]
[314592252,1708438245912,-500.0,0.00046575,6]
[314592253,1708438245924,-500.0,0.00046575,6]
[314592254,1708438245933,-500.0,0.00046575,6]
[314592255,1708438245942,-521.13602845,0.00046575,6]
[314592256,1708438245951,-500.0,0.00046575,6]
[314592257,1708438245961,-500.0,0.00046575,6]
[314592258,1708438245970,-531.82736055,0.00046575,6]
[314592259,1708438245980,-520.9361519,0.00046575,6]
[314592260,1708438245990,-526.08046614,0.00046575,6]
[314592261,1708438245999,-500.0,0.00046575,6]
[314592262,1708438246009,-500.0,0.00046575,6]
[314592263,1708438246018,-541.50583576,0.00046575,6]
[314592265,1708438246028,-523.81145639,0.00046575,6]
[314592267,1708438246038,-500.0,0.00046575,6]
[314592268,1708438246047,-542.03465063,0.00046575,6]
[314592269,1708438246056,-520.64086645,0.00046575,6]
[314592270,1708438246065,-498.92018048,0.00046575,6]
[314592271,1708438246074,-500.0,0.00046575,6]
[314592272,1708438246084,-532.84280241,0.00046575,6]
[314592273,1708438246094,-500.0,0.00046575,6]
[314592274,1708438246104,-525.21521394,0.00046575,6]
[314592276,1708438246113,-500.0,0.00046575,6]
[314592277,1708438246122,-518.77967325,0.00046575,6]
[314592279,1708438246132,-500.0,0.00046575,6]
[314592281,1708438246142,-517.9946921,0.00046575,6]
[314592282,1708438246153,-524.64851996,0.00046575,6]
[314592284,1708438246164,-532.33646259,0.00046575,6]
[314592285,1708438246178,-512.23625365,0.00046575,6]
[314592286,1708438246188,-548.85442974,0.00046575,6]
[314592287,1708438246199,-500.0,0.00046575,2]
[314592288,1708438246210,-396.46,0.00046575,6]
[314592289,1708438246220,-507.02667019,0.00046575,10]
[314592290,1708438246230,-509.41875878,0.00046575,6]
[314592291,1708438246240,-500.0,0.00046575,6]
[314592292,1708438246421,-558.57814119,0.00046575,6]
[314592293,1708438246433,-500.0,0.00046575,6]
[314592294,1708438246442,-500.0,0.00046575,6]
[314592295,1708438246452,-500.0,0.00046575,6]
[314592296,1708438246463,-500.0,0.00046575,6]
[314592297,1708438246474,-333.38474123,0.00046575,6]
[314592298,1708438246485,-500.0,0.00046575,6]
[314592299,1708438246495,-282.8206388,0.00046575,6]
[314592300,1708438246504,-500.0,0.00046575,6]
[314592301,1708438246515,-521.57539472,0.00046575,6]
[314592302,1708438246525,-444.63115306,0.00046575,6]
[314592303,1708438246535,-515.86832877,0.00046575,6]
[314592304,1708438246546,-500.0,0.00046575,6]
[314592305,1708438246555,-494.25516634,0.00046575,6]
[314592306,1708438246565,-1000.0,0.00046575,30]
[314592307,1708438246576,-562.60528418,0.00046575,6]
[314592308,1708438246586,-500.0,0.00046575,6]
[314592309,1708438246596,-500.0,0.00046575,6]
[314592311,1708438246606,-500.0,0.00046575,6]
[314592313,1708438246616,-500.0,0.00046575,6]
[314592315,1708438246626,-500.0,0.00046575,6]
[314592316,1708438246636,-541.47190062,0.00046575,6]
[314592318,1708438246645,-500.0,0.00046575,6]
[314592319,1708438246655,-313.70492157,0.00046575,6]
[314592320,1708438246667,-514.67812729,0.00046575,6]
[314592321,1708438246679,-513.28422818,0.00046575,6]
[314592322,1708438246688,-500.0,0.00046575,6]
[314592323,1708438246699,-500.0,0.00046575,6]
[314592324,1708438246709,-424.17174472,0.00046575,6]
[314592325,1708438246719,-500.0,0.00046575,6]
[314592326,1708438246728,-632.01,0.00046575,6]
[314592327,1708438246738,-500.0,0.00046575,6]
[314592328,1708438246748,-558.77256432,0.00046575,6]
[314592329,1708438246757,-500.0,0.00046575,6]
[314592330,1708438246766,-500.0,0.00046575,6]
[314592331,1708438246775,-500.0,0.00046575,6]
[314592332,1708438246785,-500.0,0.00046575,6]
[314592333,1708438246794,-624.76274017,0.00046575,6]
[314592334,1708438246803,-500.0,0.00046575,6]
[314592335,1708438246813,-510.20013802,0.00046575,6]
[314592336,1708438246822,-500.0,0.00046575,6]
[314592337,1708438246831,-500.0,0.00046575,6]
[314592338,1708438246840,-500.0,0.00046575,6]
[314592339,1708438246849,-516.84946426,0.00046575,6]
[314592340,1708438246859,-500.0,0.00046575,6]
[314592341,1708438246869,-500.0,0.00046575,6]
[314592342,1708438246878,-549.60293992,0.00046575,6]
[314592343,1708438246888,-500.0,0.00046575,6]
[314592344,1708438246897,-500.0,0.00046575,6]
[314592345,1708438246906,-500.0,0.00046575,6]
[314592346,1708438246916,-500.0,0.00046575,6]
[314592347,1708438246927,-242.35000445,0.00046575,6]
[314592348,1708438246936,-541.49068682,0.00046575,6]
[314592349,1708438246946,-500.0,0.00046575,6]
[314592350,1708438246956,-312.20773967,0.00046575,6]
[314592351,1708438246965,-415.4926533,0.00046575,6]
[314592352,1708438246974,-527.02637147,0.00046575,6]
[314592353,1708438246983,-500.0,0.00046575,6]
[314592354,1708438246993,-527.42432121,0.00046575,60]
[314592355,1708438247001,-500.0,0.00046575,6]
[314592356,1708438247010,-500.0,0.00046575,6]
[314592357,1708438247019,-531.88942042,0.00046575,6]
[314592358,1708438247028,-500.0,0.00046575,6]
[314592359,1708438247037,-575.07018521,0.00046575,6]
[314592360,1708438247047,-500.0,0.00046575,6]
[314592361,1708438247057,-562.66471069,0.00046575,6]
[314592362,1708438247066,-506.28923944,0.00046575,6]
[314592363,1708438247075,-500.0,0.00046575,6]
[314592364,1708438247085,-521.18448768,0.00046575,6]
[314592365,1708438247094,-500.0,0.00046575,6]
[314592366,1708438247103,-516.18916205,0.00046575,6]
[314592367,1708438247113,-500.0,0.00046575,6]
[314592368,1708438247122,-500.0,0.00046575,6]
[314592369,1708438247132,-524.53717736,0.00046575,6]
[314592370,1708438247141,-500.0,0.00046575,6]
[314592371,1708438247150,-500.0,0.00046575,6]
[314592372,1708438247160,-500.0,0.00046575,6]
[314592373,1708438247171,-500.0,0.00046575,6]
[314592374,1708438247180,-518.59918125,0.00046575,6]
[314592375,1708438247190,-516.17322659,0.00046575,6]
[314592376,1708438247199,-500.0,0.00046575,6]
[314592377,1708438247209,-518.55003422,0.00046575,6]
[314592378,1708438247218,-500.0,0.00046575,6]
[314592379,1708438247228,-513.87145432,0.00046575,6]
[314592380,1708438247237,-511.46834989,0.00046575,6]
[314592381,1708438247246,-500.0,0.00046575,6]
[314592382,1708438247255,-529.96515233,0.00046575,6]
[314592383,1708438247265,-566.11653482,0.00046575,6]
[314592384,1708438247275,-500.0,0.00046575,6]
[314592385,1708438247285,-500.0,0.00046575,6]
[314592386,1708438247294,-500.0,0.00046575,6]
[314592387,1708438247303,-551.20472487,0.00046575,6]
[314592388,1708438247314,-573.17259829,0.00046575,6]
[314592389,1708438247323,-500.0,0.00046575,6]
[314592390,1708438247333,-524.2725172,0.00046575,6]
[314592391,1708438247343,-432.86313815,0.00046575,6]
[314592392,1708438247352,-840.12,0.00046575,6]
[314592393,1708438247362,-535.29399655,0.00046575,6]
[314592394,1708438247371,-257.19086767,0.00046575,6]
[314592395,1708438247381,-500.0,0.00046575,6]
[314592396,1708438247391,-500.0,0.00046575,6]
[314592397,1708438247400,-520.93396564,0.00046575,6]
[314592398,1708438247409,-500.0,0.00046575,6]
[314592399,1708438247420,-529.76061083,0.00046575,6]
[314592400,1708438247429,-500.0,0.00046575,6]
[314592401,1708438247439,-500.0,0.00046575,6]
[314592402,1708438247448,-500.0,0.00046575,6]
[314592403,1708438247457,-500.0,0.00046575,6]
[314592404,1708438247467,-287.5345842,0.00046575,6]
[314592405,1708438247478,-500.0,0.00046575,6]
[314592406,1708438247488,-500.0,0.00046575,6]
[314592407,1708438247498,-500.0,0.00046575,6]
[314592408,1708438247509,-500.98,0.00046575,6]
[314592409,1708438247519,-500.0,0.00046575,6]
[314592410,1708438247528,-500.0,0.00046575,6]
[314592411,1708438247538,-500.0,0.00046575,6]
[314592412,1708438247548,-500.0,0.00046575,6]
[314592413,1708438247558,-500.0,0.00046575,6]
[314592414,1708438247567,-500.0,0.00046575,6]
[314592415,1708438247579,-714.41,0.00046575,6]
[314592416,1708438247588,-500.0,0.00046575,6]
[314592417,1708438247598,-341.69666618,0.00046575,6]
[314592418,1708438247609,-500.0,0.00046575,6]
[314592419,1708438247618,-500.0,0.00046575,6]
[314592420,1708438247627,-500.0,0.00046575,6]
[314592421,1708438247636,-500.0,0.00046575,6]
[314592422,1708438247646,-500.0,0.00046575,6]
[314592423,1708438247655,-500.0,0.00046575,6]
[314592424,1708438247665,-500.0,0.00046575,6]
[314592425,1708438247677,-500.0,0.00046575,6]
[314592426,1708438247687,-500.0,0.00046575,6]
[314592427,1708438247696,-500.0,0.00046575,6]
[314592428,1708438247706,-658.36,0.00046575,6]
[314592429,1708438247715,-522.39098309,0.00046575,6]
[314592430,1708438247724,-519.0896369,0.00046575,6]
[314592431,1708438247734,-500.0,0.00046575,6]
[314592432,1708438247743,-500.0,0.00046575,6]
[314592433,1708438247752,-500.0,0.00046575,6]
[314592434,1708438247762,-500.0,0.00046575,6]
[314592435,1708438247771,-553.30299236,0.00046575,6]
[314592436,1708438247780,-501.29468975,0.00046575,6]
[314592437,1708438247790,-500.0,0.00046575,6]
[314592438,1708438247799,-500.0,0.00046575,6]
[314592439,1708438247808,-525.13269746,0.00046575,6]
[314592440,1708438247818,-240.20627516,0.00046575,6]
[314592441,1708438247827,-500.0,0.00046575,6]
[314592442,1708438247836,-500.0,0.00046575,6]
[314592443,1708438247845,-427.38451308,0.00046575,6]
[314592444,1708438247855,-500.0,0.00046575,6]
[314592445,1708438247864,-500.0,0.00046575,6]
[314592446,1708438247874,-590.70851985,0.00046575,6]
[314592447,1708438247883,-500.0,0.00046575,6]
[314592448,1708438247892,-344.09418387,0.00046575,6]
[314592449,1708438247901,-519.18415384,0.00046575,6]
[314592450,1708438247914,-500.0,0.00046575,6]
[314592451,1708438247925,-500.0,0.00046575,6]
[314592452,1708438247934,-500.0,0.00046575,6]
[314592453,1708438247943,-500.0,0.00046575,6]
[314592454,1708438247953,-500.0,0.00046575,6]
[314592455,1708438247962,-547.41523534,0.00046575,6]
[314592456,1708438247971,-500.0,0.00046575,6]
[314592457,1708438247981,-500.0,0.00046575,6]
[314592458,1708438247990,-500.0,0.00046575,6]
[314592459,1708438247999,-500.0,0.00046575,6]
[314592460,1708438248009,-500.0,0.00046575,6]
[314592461,1708438248018,-500.0,0.00046575,6]
[314592462,1708438248027,-500.0,0.00046575,6]
[314592463,1708438248037,-509.38595626,0.00046575,6]
[314592464,1708438248046,-536.57226261,0.00046575,6]
[314592465,1708438248055,-500.0,0.00046575,6]
[314592466,1708438248064,-500.0,0.00046575,6]
[314592467,1708438248074,-528.66440821,0.00046575,6]
[314592468,1708438248083,-500.0,0.00046575,6]
[314592469,1708438248092,-500.0,0.00046575,6]
[314592470,1708438248101,-521.43195396,0.00046575,6]
[314592471,1708438248110,-500.0,0.00046575,6]
[314592472,1708438248121,-500.0,0.00046575,6]
[314592473,1708438248130,-500.0,0.00046575,6]
[314592474,1708438248139,-519.01540819,0.00046575,6]
[314592475,1708438248148,-500.0,0.00046575,6]
[314592476,1708438248158,-250.0,0.00046575,6]
[314592477,1708438248169,-500.0,0.00046575,6]
[314592478,1708438248179,-509.73249674,0.00046575,6]
[314592479,1708438248188,-559.60669253,0.00046575,6]
[314592480,1708438248198,-500.0,0.00046575,6]
[314592481,1708438248208,-500.0,0.00046575,6]
[314592482,1708438248218,-500.0,0.00046575,6]
[314592483,1708438248228,-550.97264739,0.00046575,6]
[314592484,1708438248238,-500.0,0.00046575,6]
[314592485,1708438248247,-500.0,0.00046575,6]
[314592486,1708438248257,-500.0,0.00046575,6]
[314592487,1708438248267,-500.0,0.00046575,6]
[314592488,1708438248277,-500.0,0.00046575,6]
[314592489,1708438248286,-1213.81,0.00046575,6]
[314592490,1708438248296,-500.0,0.00046575,6]
[314592491,1708438248306,-1095.04,0.00046575,6]
[314592492,1708438248316,-511.42089476,0.00046575,6]
[314592493,1708438248326,-500.0,0.00046575,6]
[314592494,1708438248337,-500.0,0.00046575,6]
[314592495,1708438248346,-464.71887867,0.00046575,6]
[314592496,1708438248356,-500.0,0.00046575,6]
[314592497,1708438248365,-500.0,0.00046575,6]
[314592498,1708438248375,-229.83610695,0.00046575,6]
[314592499,1708438248385,-500.0,0.00046575,6]
[314592500,1708438248395,-2412.35,0.00046575,6]
[314592501,1708438248404,-500.0,0.00046575,6]
[314592502,1708438248413,-500.0,0.00046575,6]
[314592503,1708438248424,-575.31813835,0.00046575,6]
[314592504,1708438248433,-500.0,0.00046575,6]
[314592505,1708438248442,-513.64,0.00046575,6]
[314592506,1708438248451,-500.0,0.00046575,6]
[314592507,1708438248460,-500.0,0.00046575,6]
[314592508,1708438248470,-500.0,0.00046575,6]
[314592509,1708438248479,-500.0,0.00046575,6]
[314592510,1708438248488,-500.0,0.00046575,6]
[314592511,1708438248498,-510.75,0.00046575,6]
[314592512,1708438248508,-533.2785524,0.00046575,6]
[314592513,1708438248517,-500.0,0.00046575,6]
[314592514,1708438248527,-500.0,0.00046575,6]
[314592515,1708438248536,-578.31940821,0.00046575,6]
[314592516,1708438248545,-534.69231567,0.00046575,6]
[314592517,1708438248555,-514.75407924,0.00046575,6]
[314592518,1708438248564,-500.0,0.00046575,6]
[314592519,1708438248574,-500.0,0.00046575,6]
[314592520,1708438248583,-3945.56,0.00046575,6]
[314592521,1708438248593,-500.0,0.00046575,6]
[314592522,1708438248604,-500.0,0.00046575,6]
[314592523,1708438248614,-500.0,0.00046575,6]
[314592524,1708438248624,-500.0,0.00046575,6]
[314592525,1708438248633,-500.0,0.00046575,6]
[314592526,1708438248642,-500.0,0.00046575,6]
[314592527,1708438248652,-590.34257876,0.00046575,6]
[314592528,1708438248662,-500.0,0.00046575,6]
[314592529,1708438248673,-500.0,0.00046575,6]
[314592530,1708438248684,-500.0,0.00046575,6]
[314592531,1708438248693,-500.0,0.00046575,6]
[314592532,1708438248703,-500.0,0.00046575,6]
[314592533,1708438248713,-500.0,0.00046575,6]
[314592534,1708438248722,-500.0,0.00046575,6]
[314592535,1708438248731,-500.0,0.00046575,6]
[314592536,1708438248741,-500.0,0.00046575,6]
[314592537,1708438248750,-500.0,0.00046575,6]
[314592538,1708438248759,-500.0,0.00046575,6]
[314592539,1708438248769,-618.15172176,0.00046575,6]
[314592540,1708438248779,-532.02999864,0.00046575,6]
[314592541,1708438248788,-500.0,0.00046575,6]
[314592542,1708438248798,-509.19477868,0.00046575,6]
[314592543,1708438248808,-500.0,0.00046575,6]
[314592544,1708438248855,-1733.94,0.00046575,6]
[314592545,1708438248865,-500.0,0.00046575,6]
[314592546,1708438248874,-500.0,0.00046575,6]
[314592547,1708438248884,-538.10259761,0.00046575,6]
[314592548,1708438248892,-500.0,0.00046575,6]
[314592549,1708438248902,-500.0,0.00046575,6]
[314592550,1708438248910,-500.0,0.00046575,6]
[314592551,1708438248921,-500.0,0.00046575,6]
[314592552,1708438248930,-500.0,0.00046575,6]
[314592553,1708438248939,-500.0,0.00046575,6]
[314592554,1708438248948,-500.0,0.00046575,6]
[314592555,1708438248957,-500.0,0.00046575,6]
[314592556,1708438248966,-500.0,0.00046575,6]
[314592557,1708438248975,-500.0,0.00046575,6]
[314592558,1708438248984,-500.0,0.00046575,6]
[314592559,1708438248992,-506.4659255,0.00046575,6]
[314592560,1708438249001,-500.0,0.00046575,6]
[314592561,1708438249010,-500.0,0.00046575,6]
[314592562,1708438249019,-500.0,0.00046575,6]
[314592563,1708438249028,-500.0,0.00046575,6]
[314592564,1708438249037,-500.0,0.00046575,6]
[314592565,1708438249047,-500.0,0.00046575,6]
[314592566,1708438249055,-500.0,0.00046575,6]
[314592567,1708438249064,-890.14,0.00046575,6]
[314592568,1708438249073,-500.0,0.00046575,6]
[314592569,1708438249082,-500.0,0.00046575,6]
[314592570,1708438249091,-500.0,0.00046575,6]
[314592571,1708438249100,-521.28595627,0.00046575,6]
[314592572,1708438249110,-4607.04,0.00046575,6]
[314592573,1708438249119,-587.05127949,0.00046575,6]
[314592574,1708438249129,-500.0,0.00046575,6]
[314592575,1708438249138,-500.0,0.00046575,6]
[314592576,1708438249147,-424.78890762,0.00046575,6]
[314592577,1708438249156,-500.0,0.00046575,6]
[314592578,1708438249166,-500.0,0.00046575,6]
[314592579,1708438249177,-500.0,0.00046575,6]
[314592580,1708438249186,-500.0,0.00046575,6]